[Event "Championnat d'Europe de Blitz"]
[Date "2024.12.09"]
[White "Maier, Christian"]
[Black "Arnaudov, G. Petar"]
[WhiteElo "2235"]
[BlackElo "2401"]
[Round "13.44"]
[Result "1-0"]
[TimeControl "180+2"]

1. e4 {[%emt 00:00:02] [%clk 00:03:01]} g6 {[%emt 00:00:02] [%clk 00:03:03]} 2.
d4 {[%emt 00:00:05] [%clk 00:02:57]} Bg7 {[%clk 00:03:04]} 3. Nf3 {[%emt
00:00:02] [%clk 00:02:58]} c6 {[%emt 00:00:01] [%clk 00:03:05]} 4. h3 {[%emt
00:00:03] [%clk 00:02:57]} d5 {[%emt 00:00:01] [%clk 00:03:06]} 5. e5 {[%emt
00:00:01] [%clk 00:02:58]} f6 {[%emt 00:00:05] [%clk 00:03:03]} 6. Bf4 {[%emt
00:00:01] [%clk 00:02:58]} Nh6 {[%emt 00:00:03] [%clk 00:03:02]} 7. Qd2 {[%emt
00:00:14] [%clk 00:02:47]} Nf7 {[%emt 00:00:04] [%clk 00:03:00]} 8. exf6 {[%emt
00:00:07] [%clk 00:02:42]} exf6 {[%emt 00:00:17] [%clk 00:02:44]} 9. Bd3 {[%emt
00:00:02] [%clk 00:02:43]} O-O {[%emt 00:00:02] [%clk 00:02:44]} 10. O-O {[%emt
00:00:01] [%clk 00:02:43]} Nd6 {[%emt 00:00:06] [%clk 00:02:40]} 11. Nc3 {[%emt
00:00:03] [%clk 00:02:43]} Na6 {[%emt 00:00:07] [%clk 00:02:35]} 12. a3 {[%emt
00:00:07] [%clk 00:02:38]} Nc7 {[%emt 00:00:01] [%clk 00:02:36]} 13. Rae1 {[%emt
00:00:03] [%clk 00:02:37]} b6 {[%emt 00:00:59] [%clk 00:01:39]} 14. Re2 {[%emt
00:00:07] [%clk 00:02:32]} Ba6 {[%emt 00:00:01] [%clk 00:01:40]} 15. Rfe1 {[%emt
00:00:06] [%clk 00:02:27]} Bxd3 {[%emt 00:00:02] [%clk 00:01:41]} 16. Qxd3
{[%emt 00:00:03] [%clk 00:02:26]} Rf7 {[%emt 00:00:06] [%clk 00:01:37]} 17. b3
{[%emt 00:00:05] [%clk 00:02:23]} Qd7 {[%emt 00:00:02] [%clk 00:01:38]} 18. a4
{[%emt 00:00:03] [%clk 00:02:21]} a5 {[%emt 00:00:02] [%clk 00:01:38]} 19. Nd2
{[%emt 00:00:15] [%clk 00:02:08]} Re8 {[%emt 00:00:04] [%clk 00:01:36]} 20.
Rxe8+ {[%emt 00:00:02] [%clk 00:02:08]} Ncxe8 {[%emt 00:00:03]} 21. Qa6 {[%emt
00:00:04] [%clk 00:02:04]} Qb7 {[%emt 00:00:15] [%clk 00:01:24]} 22. Qd3 {[%emt
00:00:10] [%clk 00:01:56]} Qc8 {[%emt 00:00:09] [%clk 00:01:18]} 23. Nd1 {[%emt
00:00:10] [%clk 00:01:47]} Bf8 {[%emt 00:00:07] [%clk 00:01:13]} 24. c4 {[%emt
00:00:05] [%clk 00:01:44]} Re7 {[%emt 00:00:06] [%clk 00:01:09]} 25. Rxe7 {[%emt
00:00:02] [%clk 00:01:44]} Bxe7 {[%clk 00:01:10]} 26. cxd5 {[%emt 00:00:08]
[%clk 00:01:38]} cxd5 {[%emt 00:00:01] [%clk 00:01:11]} 27. Nc3 {[%emt 00:00:05]
[%clk 00:01:35]} Nc7 {[%emt 00:00:12] [%clk 00:01:01]} 28. Nf1 {[%emt 00:00:05]
[%clk 00:01:32]} Qe6 {[%emt 00:00:19] [%clk 00:00:44]} 29. Ne3 {[%emt 00:00:04]
[%clk 00:01:30]} Kf7 {[%emt 00:00:05] [%clk 00:00:41]} 30. Bxd6 {[%emt 00:00:12]
[%clk 00:01:20]} Bxd6 {[%emt 00:00:06] [%clk 00:00:38]} 31. Nb5 {[%emt 00:00:01]
[%clk 00:01:20]} Ne8 {[%emt 00:00:13] [%clk 00:00:27]} 32. Qc2 {[%emt 00:00:05]
[%clk 00:01:17]} Bb4 {[%emt 00:00:10] [%clk 00:00:19]} 33. Nc7 {[%emt 00:00:05]
[%clk 00:01:13]} Nxc7 {[%emt 00:00:08] [%clk 00:00:14]} 34. Qxc7+ {[%clk
00:01:14]} Be7 {[%emt 00:00:09] [%clk 00:00:07]} 35. Qb7 {[%clk 00:01:15]} Qe4
{[%emt 00:00:01] [%clk 00:00:08]} 36. Qxd5+ {[%emt 00:00:02] [%clk 00:01:15]}
Qxd5 {[%emt 00:00:01] [%clk 00:00:09]} 37. Nxd5 {[%clk 00:01:16]} Bd8 {[%clk
00:00:11]} 38. Kf1 {[%emt 00:00:05]} Ke6 {[%clk 00:00:12]} 39. Nc3 {[%emt
00:00:01] [%clk 00:01:14]} f5 {[%emt 00:00:02] [%clk 00:00:13]} 40. Ke2 {[%clk
00:01:16]} h5 {[%emt 00:00:02] [%clk 00:00:14]} 41. Kd3 {[%clk 00:01:16]} Bg5
{[%emt 00:00:04] [%clk 00:00:11]} 42. Kc4 {[%emt 00:00:02] [%clk 00:01:17]} Bf6
{[%emt 00:00:05] [%clk 00:00:09]} 43. Nd5 {[%emt 00:00:04] [%clk 00:01:14]} Bd8
{[%emt 00:00:01] [%clk 00:00:10]} 44. Nf4+ {[%emt 00:00:01] [%clk 00:01:15]} Kf7
{[%emt 00:00:05] [%clk 00:00:07]} 45. Kb5 {[%emt 00:00:08] [%clk 00:01:15]} 1-0

[Site "Europe Echecs"]

[Event "Championnat d'Europe de Blitz"]
[Date "2024.12.09"]
[White "Domingo Nunez, Ruben"]
[Black "Trapp, Maximilian"]
[WhiteElo "2409"]
[BlackElo "2050"]
[Round "13.45"]
[Result "0-1"]
[TimeControl "180+2"]

1. e4 {[%clk 00:03:03]} d5 2. exd5 {[%clk 00:03:04]} Nf6 {[%clk 00:03:04]} 3.
Bb5+ {[%emt 00:00:01] [%clk 00:03:05]} Bd7 {[%clk 00:03:06]} 4. Be2 {[%emt
00:00:01] [%clk 00:03:06]} Nxd5 {[%emt 00:00:02] [%clk 00:03:07]} 5. d4 {[%clk
00:03:07]} c6 {[%emt 00:00:01] [%clk 00:03:08]} 6. c4 {[%emt 00:00:01] [%clk
00:03:08]} Nf6 {[%clk 00:03:08]} 7. Nc3 {[%clk 00:03:10]} Bf5 {[%emt 00:00:01]
[%clk 00:03:10]} 8. h3 {[%emt 00:00:01] [%clk 00:03:11]} e6 {[%emt 00:00:01]
[%clk 00:03:11]} 9. Nf3 {[%clk 00:03:12]} h6 {[%emt 00:00:01] [%clk 00:03:11]}
10. O-O {[%emt 00:00:01] [%clk 00:03:13]} Be7 {[%emt 00:00:01] [%clk 00:03:12]}
11. Be3 {[%emt 00:00:01] [%clk 00:03:14]} O-O {[%clk 00:03:13]} 12. a3 {[%emt
00:00:06] [%clk 00:03:10]} Nbd7 {[%emt 00:00:02] [%clk 00:03:13]} 13. b4 {[%emt
00:00:03] [%clk 00:03:09]} a6 {[%emt 00:00:01] [%clk 00:03:14]} 14. d5 {[%emt
00:00:26] [%clk 00:02:45]} cxd5 {[%emt 00:00:09] [%clk 00:03:07]} 15. cxd5
{[%emt 00:00:01] [%clk 00:02:46]} exd5 {[%emt 00:00:39] [%clk 00:02:31]} 16.
Nxd5 {[%clk 00:02:47]} Be4 {[%emt 00:00:09] [%clk 00:02:23]} 17. Nxe7+ {[%emt
00:00:31] [%clk 00:02:18]} Qxe7 {[%emt 00:00:01] [%clk 00:02:24]} 18. Nd2 {[%emt
00:00:02] [%clk 00:02:19]} Bc6 {[%emt 00:00:04] [%clk 00:02:21]} 19. Nc4 {[%emt
00:00:15] [%clk 00:02:06]} Rfd8 {[%emt 00:00:02] [%clk 00:02:21]} 20. Na5 {[%emt
00:00:19] [%clk 00:01:50]} Ne5 {[%emt 00:00:27] [%clk 00:01:55]} 21. Nxc6 {[%emt
00:00:19] [%clk 00:01:33]} Nxc6 {[%emt 00:00:01] [%clk 00:01:56]} 22. Qb3 {[%emt
00:00:04] [%clk 00:01:31]} Nd4 {[%emt 00:00:07] [%clk 00:01:52]} 23. Bxd4 {[%emt
00:00:01] [%clk 00:01:31]} Rxd4 {[%emt 00:00:03] [%clk 00:01:51]} 24. Bf3 {[%emt
00:00:01] [%clk 00:01:33]} Rad8 {[%emt 00:00:02] [%clk 00:01:50]} 25. Rfe1
{[%emt 00:00:02] [%clk 00:01:34]} Qd7 {[%emt 00:00:03] [%clk 00:01:48]} 26. Rac1
{[%emt 00:00:09] [%clk 00:01:27]} Rd3 {[%emt 00:00:05] [%clk 00:01:46]} 27. Rc3
{[%emt 00:00:04] [%clk 00:01:25]} b6 {[%emt 00:00:12] [%clk 00:01:36]} 28. Re3
{[%emt 00:00:31] [%clk 00:00:55]} Rd2 {[%emt 00:00:05] [%clk 00:01:34]} 29. Rc2
{[%emt 00:00:27] [%clk 00:00:30]} Rxc2 {[%emt 00:00:07] [%clk 00:01:29]} 30.
Qxc2 {[%emt 00:00:01] [%clk 00:00:31]} Rc8 {[%emt 00:00:02] [%clk 00:01:29]} 31.
Qe2 {[%emt 00:00:03] [%clk 00:00:29]} a5 {[%emt 00:00:04] [%clk 00:01:27]} 32.
Re7 {[%emt 00:00:08] [%clk 00:00:23]} Qd6 {[%emt 00:00:01] [%clk 00:01:28]} 33.
g3 {[%emt 00:00:21] [%clk 00:00:05]} axb4 {[%clk 00:01:29]} 34. axb4 {[%clk
00:00:06]} Qxb4 {[%emt 00:00:04] [%clk 00:01:27]} 35. Rb7 {[%clk 00:00:07]} Qb3
{[%emt 00:00:43] [%clk 00:00:46]} 36. Kg2 {[%emt 00:00:05] [%clk 00:00:04]} Re8
{[%emt 00:00:03] [%clk 00:00:45]} 37. Qd2 {[%emt 00:00:21]} Rc8 {[%emt
00:00:02]} 38. Qd6 {[%clk 00:00:04]} b5 {[%emt 00:00:10] [%clk 00:00:19]} 39.
Qa6 {[%emt 00:00:02] [%clk 00:00:05]} Rd8 {[%emt 00:00:07] [%clk 00:00:14]} 40.
Rxb5 {[%emt 00:00:02] [%clk 00:00:04]} Qc4 {[%emt 00:00:02] [%clk 00:00:14]} 41.
Qa5 {[%emt 00:00:01] [%clk 00:00:05]} Qc8 {[%clk 00:00:13]} 42. Qa2 {[%emt
00:00:02] [%clk 00:00:06]} Rf8 {[%emt 00:00:05] [%clk 00:00:10]} 43. Rb7 {[%emt
00:00:01] [%clk 00:00:07]} Qc5 {[%emt 00:00:02] [%clk 00:00:10]} 44. Qb3 {[%emt
00:00:02] [%clk 00:00:07]} Qe5 {[%emt 00:00:01] [%clk 00:00:11]} 45. Qb4 {[%emt
00:00:04] [%clk 00:00:05]} Qe6 {[%emt 00:00:01] [%clk 00:00:12]} 46. Re7 {[%clk
00:00:06]} Qf5 {[%emt 00:00:03] [%clk 00:00:11]} 47. Qd4 {[%emt 00:00:02] [%clk
00:00:06]} Qb5 {[%emt 00:00:03] [%clk 00:00:09]} 48. h4 {[%emt 00:00:04] [%clk
00:00:05]} Qa5 {[%emt 00:00:02] [%clk 00:00:09]} 49. Re5 {[%emt 00:00:02] [%clk
00:00:06]} Qd8 {[%emt 00:00:01] [%clk 00:00:10]} 50. Qf4 {[%clk 00:00:06]} Qd6
{[%emt 00:00:01] [%clk 00:00:10]} 51. Qe3 {[%emt 00:00:02] [%clk 00:00:07]} Rd8
{[%emt 00:00:03]} 52. Re7 {[%clk 00:00:07]} Rf8 {[%emt 00:00:04] [%clk
00:00:09]} 53. Rb7 {[%emt 00:00:02] [%clk 00:00:07]} Qa6 {[%emt 00:00:01] [%clk
00:00:10]} 54. Rb6 {[%emt 00:00:03] [%clk 00:00:06]} Qa7 {[%emt 00:00:01] [%clk
00:00:10]} 55. Qb3 {[%emt 00:00:02] [%clk 00:00:07]} Qd7 {[%emt 00:00:02] [%clk
00:00:09]} 56. Qb2 {[%emt 00:00:02] [%clk 00:00:08]} Qc7 {[%emt 00:00:02] [%clk
00:00:10]} 57. Rxf6 {[%clk 00:00:08]} gxf6 {[%emt 00:00:01] [%clk 00:00:10]} 58.
Qxf6 {[%emt 00:00:01] [%clk 00:00:10]} Re8 {[%emt 00:00:03] [%clk 00:00:10]} 59.
Qxh6 {[%emt 00:00:01] [%clk 00:00:10]} Re6 {[%emt 00:00:01] [%clk 00:00:10]} 60.
Qg5+ {[%clk 00:00:11]} Kf8 {[%emt 00:00:02] [%clk 00:00:11]} 61. h5 {[%emt
00:00:02] [%clk 00:00:11]} Qe5 {[%emt 00:00:02] [%clk 00:00:11]} 62. Qd8+ {[%emt
00:00:07] [%clk 00:00:06]} Kg7 {[%emt 00:00:02] [%clk 00:00:11]} 63. Qd2 {[%emt
00:00:01] [%clk 00:00:06]} Rf6 {[%emt 00:00:02] [%clk 00:00:12]} 64. Qd3 {[%emt
00:00:02] [%clk 00:00:06]} Qg5 {[%emt 00:00:02] [%clk 00:00:13]} 65. Qe4 {[%emt
00:00:01] [%clk 00:00:06]} Qf5 {[%clk 00:00:14]} 66. Qe3 {[%emt 00:00:02] [%clk
00:00:07]} Re6 {[%emt 00:00:02] [%clk 00:00:13]} 67. Qd4+ {[%emt 00:00:02] [%clk
00:00:07]} Rf6 {[%clk 00:00:14]} 68. Qe3 {[%emt 00:00:02] [%clk 00:00:07]} Re6
{[%emt 00:00:01] [%clk 00:00:15]} 69. Qd4+ {[%clk 00:00:08]} Qe5 {[%clk
00:00:17]} 70. Qg4+ {[%clk 00:00:09]} Kf8 {[%emt 00:00:02] [%clk 00:00:17]} 71.
Qh4 {[%emt 00:00:02] [%clk 00:00:08]} Qf6 {[%emt 00:00:03] [%clk 00:00:16]} 72.
Qb4+ {[%emt 00:00:01] [%clk 00:00:09]} Kg7 {[%clk 00:00:17]} 73. Qg4+ {[%emt
00:00:02] [%clk 00:00:09]} Kf8 {[%emt 00:00:01] [%clk 00:00:18]} 74. Bd5 {[%clk
00:00:10]} Re5 {[%emt 00:00:02] [%clk 00:00:18]} 75. Bf3 {[%emt 00:00:04] [%clk
00:00:08]} Rg5 {[%emt 00:00:02] [%clk 00:00:18]} 76. Qe4 {[%emt 00:00:03] [%clk
00:00:08]} Kg7 {[%emt 00:00:01] [%clk 00:00:18]} 77. Qe3 {[%emt 00:00:02] [%clk
00:00:08]} Re5 {[%emt 00:00:01] [%clk 00:00:19]} 78. Qd4 {[%emt 00:00:01] [%clk
00:00:08]} Rf5 {[%emt 00:00:02] [%clk 00:00:20]} 79. Qe3 {[%clk 00:00:10]} Re5
{[%clk 00:00:21]} 80. Qd2 {[%emt 00:00:02] [%clk 00:00:10]} Rf5 {[%emt 00:00:01]
[%clk 00:00:22]} 81. Qd3 {[%emt 00:00:01] [%clk 00:00:11]} Re5 {[%emt 00:00:01]
[%clk 00:00:23]} 82. Bg4 {[%emt 00:00:03] [%clk 00:00:11]} Rg5 {[%clk 00:00:24]}
83. Qe4 {[%emt 00:00:02] [%clk 00:00:12]} Re5 {[%clk 00:00:24]} 84. Qc4 {[%emt
00:00:03] [%clk 00:00:10]} Qd6 {[%emt 00:00:06] [%clk 00:00:21]} 85. Qc3 {[%emt
00:00:06] [%clk 00:00:06]} Qf6 {[%emt 00:00:02] [%clk 00:00:21]} 86. Qc4 {[%emt
00:00:02] [%clk 00:00:06]} Qd6 {[%emt 00:00:03] [%clk 00:00:20]} 87. Qf4 {[%emt
00:00:01] [%clk 00:00:07]} Qf6 {[%emt 00:00:02] [%clk 00:00:20]} 88. h6+ {[%emt
00:00:01] [%clk 00:00:08]} Kg6 {[%emt 00:00:04] [%clk 00:00:18]} 89. h7 {[%emt
00:00:03] [%clk 00:00:07]} Qxf4 {[%emt 00:00:06] [%clk 00:00:14]} 90. h8=Q
{[%emt 00:00:02] [%clk 00:00:07]} Qf6 {[%emt 00:00:07] [%clk 00:00:08]} 91. Bh5+
{[%emt 00:00:04] [%clk 00:00:05]} Rxh5 {[%emt 00:00:03] [%clk 00:00:08]} 92. Qf8
{[%emt 00:00:02]} Qg7 93. Qc8 {[%clk 00:00:08]} Re5 {[%emt 00:00:04] [%clk
00:00:06]} 94. Qg4+ {[%emt 00:00:01] [%clk 00:00:09]} Kf6 {[%clk 00:00:08]} 95.
Qf4+ {[%emt 00:00:01] [%clk 00:00:09]} Ke6 {[%clk 00:00:09]} 96. Qc4+ {[%emt
00:00:01] [%clk 00:00:10]} Ke7 {[%emt 00:00:01] [%clk 00:00:10]} 97. Qc7+ {[%clk
00:00:11]} Kf6 {[%emt 00:00:01] [%clk 00:00:11]} 98. Qd6+ {[%emt 00:00:01] [%clk
00:00:13]} Re6 {[%emt 00:00:01] [%clk 00:00:11]} 99. Qd4+ {[%emt 00:00:01] [%clk
00:00:14]} Kg6 {[%clk 00:00:12]} 100. Qg4+ {[%clk 00:00:15]} Kh7 {[%clk
00:00:13]} 101. Qf5+ {[%clk 00:00:16]} Qg6 {[%emt 00:00:01] [%clk 00:00:14]}
102. Qh3+ {[%clk 00:00:17]} Kg7 {[%emt 00:00:01] [%clk 00:00:16]} 103. Qh4
{[%clk 00:00:19]} Qe4+ {[%emt 00:00:01] [%clk 00:00:17]} 0-1

[Site "Europe Echecs"]

[Event "Championnat d'Europe de Blitz"]
[Date "2024.12.09"]
[White "Gaponenko, Inna"]
[Black "Hamitevici, Vladimir"]
[WhiteElo "2343"]
[BlackElo "2423"]
[Round "13.46"]
[Result "0-1"]
[TimeControl "180+2"]

1. e4 {[%clk 00:03:02]} c5 {[%emt 00:00:02] [%clk 00:03:02]} 2. c3 {[%emt
00:00:15]} d5 {[%clk 00:02:51]} 3. exd5 {[%emt 00:00:01] [%clk 00:03:04]} Qxd5
{[%clk 00:02:52]} 4. d4 {[%emt 00:00:01] [%clk 00:03:04]} Nf6 {[%clk 00:02:53]}
5. Nf3 {[%emt 00:00:01] [%clk 00:03:06]} Bg4 {[%emt 00:00:02] [%clk 00:02:53]}
6. Be2 {[%clk 00:03:07]} e6 {[%emt 00:00:03] [%clk 00:02:53]} 7. h3 {[%clk
00:03:08]} Bh5 {[%emt 00:00:01] [%clk 00:02:54]} 8. O-O {[%emt 00:00:02] [%clk
00:03:08]} Nc6 {[%emt 00:00:15] [%clk 00:02:41]} 9. Be3 {[%emt 00:00:05] [%clk
00:03:05]} cxd4 {[%emt 00:00:08] [%clk 00:02:35]} 10. cxd4 {[%emt 00:00:01]
[%clk 00:03:06]} Be7 {[%emt 00:00:06] [%clk 00:02:31]} 11. Nc3 {[%emt 00:00:01]
[%clk 00:03:07]} Qd6 {[%clk 00:02:32]} 12. Qb3 {[%emt 00:00:02] [%clk 00:03:07]}
O-O {[%emt 00:00:13] [%clk 00:02:21]} 13. Rfd1 {[%emt 00:00:04] [%clk 00:03:05]}
Qb4 {[%emt 00:00:24] [%clk 00:02:00]} 14. d5 {[%emt 00:00:55] [%clk 00:02:12]}
exd5 {[%emt 00:00:16] [%clk 00:01:46]} 15. Nxd5 {[%clk 00:02:12]} Nxd5 {[%clk
00:01:48]} 16. Rxd5 {[%emt 00:00:02] [%clk 00:02:12]} Bg6 {[%emt 00:00:01] [%clk
00:01:49]} 17. Rd7 {[%emt 00:00:24] [%clk 00:01:50]} Qxb3 {[%emt 00:00:17] [%clk
00:01:33]} 18. axb3 {[%emt 00:00:01] [%clk 00:01:51]} Bf6 {[%emt 00:00:08] [%clk
00:01:27]} 19. Rxb7 {[%emt 00:00:08] [%clk 00:01:45]} Bxb2 {[%emt 00:00:07]
[%clk 00:01:22]} 20. Ra6 {[%emt 00:00:03] [%clk 00:01:45]} Rfc8 {[%emt 00:00:14]
[%clk 00:01:10]} 21. Bc4 {[%emt 00:00:14] [%clk 00:01:33]} Bc3 {[%emt 00:00:48]
[%clk 00:00:24]} 22. Nh4 {[%emt 00:00:28] [%clk 00:01:07]} Ne5 {[%emt 00:00:03]
[%clk 00:00:24]} 23. Nxg6 {[%clk 00:01:07]} hxg6 {[%clk 00:00:25]} 24. Be2
{[%emt 00:00:33] [%clk 00:00:36]} Rd8 {[%emt 00:00:22] [%clk 00:00:05]} 25.
Raxa7 {[%emt 00:00:07] [%clk 00:00:31]} Rxa7 {[%clk 00:00:07]} 26. Bxa7 {[%emt
00:00:03] [%clk 00:00:30]} Bd4 {[%emt 00:00:01] [%clk 00:00:08]} 27. Bxd4 {[%emt
00:00:02] [%clk 00:00:30]} Rxd4 {[%clk 00:00:10]} 28. b4 {[%emt 00:00:04] [%clk
00:00:28]} Rd2 {[%clk 00:00:11]} 29. Bf1 {[%emt 00:00:11] [%clk 00:00:18]} Rd1
{[%clk 00:00:12]} 30. g3 {[%emt 00:00:05]} Rb1 {[%clk 00:00:12]} 31. Kg2 {[%emt
00:00:02] [%clk 00:00:18]} Rb2 {[%emt 00:00:01] [%clk 00:00:13]} 32. b5 {[%emt
00:00:02] [%clk 00:00:18]} f6 {[%clk 00:00:15]} 33. b6 {[%emt 00:00:04] [%clk
00:00:16]} Kh7 {[%emt 00:00:01] [%clk 00:00:16]} 34. h4 {[%emt 00:00:13] [%clk
00:00:11]} Kh6 {[%emt 00:00:12] [%clk 00:00:07]} 35. Ba6 {[%emt 00:00:04] [%clk
00:00:09]} Ng4 {[%emt 00:00:01] [%clk 00:00:08]} 36. Rb8 {[%clk 00:00:10]} g5
{[%emt 00:00:03] [%clk 00:00:07]} 37. hxg5+ {[%emt 00:00:01] [%clk 00:00:10]}
Kxg5 {[%emt 00:00:01] [%clk 00:00:08]} 38. b7 {[%emt 00:00:02] [%clk 00:00:11]}
Rxf2+ {[%emt 00:00:02] [%clk 00:00:08]} 39. Kg1 {[%emt 00:00:01] [%clk
00:00:12]} Ra2 {[%emt 00:00:04] [%clk 00:00:06]} 40. Rg8 {[%emt 00:00:01] [%clk
00:00:13]} Ra1+ {[%emt 00:00:03] [%clk 00:00:05]} 41. Kg2 {[%emt 00:00:02] [%clk
00:00:13]} Ra2+ {[%emt 00:00:02] [%clk 00:00:05]} 42. Kf3 {[%clk 00:00:14]} f5
{[%clk 00:00:07]} 43. Rxg7+ {[%emt 00:00:03] [%clk 00:00:13]} Kf6 {[%clk
00:00:08]} 44. b8=Q {[%emt 00:00:07]} Rf2# {[%clk 00:00:08]} 0-1

[Site "Europe Echecs"]

[Event "Championnat d'Europe de Blitz"]
[Date "2024.12.09"]
[White "Kukk, Sander"]
[Black "Nevednichy, Vladislav"]
[WhiteElo "2234"]
[BlackElo "2451"]
[Round "13.47"]
[Result "1-0"]
[TimeControl "180+2"]

1. b3 {[%clk 00:03:02]} e5 {[%clk 00:03:03]} 2. Bb2 {[%emt 00:00:01] [%clk
00:03:03]} Nc6 {[%emt 00:00:03] [%clk 00:03:02]} 3. e3 {[%emt 00:00:01] [%clk
00:03:04]} g6 {[%emt 00:00:04] [%clk 00:03:00]} 4. Bb5 {[%emt 00:00:02] [%clk
00:03:04]} Bg7 {[%emt 00:00:01] [%clk 00:03:01]} 5. Bxc6 {[%emt 00:00:01] [%clk
00:03:04]} bxc6 {[%emt 00:00:02] [%clk 00:03:01]} 6. f4 {[%emt 00:00:01] [%clk
00:03:06]} d6 {[%emt 00:00:05] [%clk 00:02:57]} 7. fxe5 {[%emt 00:00:06] [%clk
00:03:02]} dxe5 {[%emt 00:00:18] [%clk 00:02:41]} 8. Nf3 {[%emt 00:00:02] [%clk
00:03:02]} f6 {[%emt 00:00:08] [%clk 00:02:35]} 9. d3 {[%emt 00:00:10] [%clk
00:02:55]} Nh6 {[%emt 00:00:11] [%clk 00:02:26]} 10. O-O {[%emt 00:00:03] [%clk
00:02:54]} O-O {[%clk 00:02:27]} 11. Qe2 {[%emt 00:00:03] [%clk 00:02:52]} Nf7
{[%emt 00:00:07] [%clk 00:02:22]} 12. Nbd2 {[%emt 00:00:03] [%clk 00:02:51]} Be6
{[%emt 00:00:12] [%clk 00:02:12]} 13. e4 {[%emt 00:00:07] [%clk 00:02:45]} g5
{[%emt 00:00:25] [%clk 00:01:50]} 14. Nc4 {[%emt 00:00:09] [%clk 00:02:37]} Nd6
{[%emt 00:00:08] [%clk 00:01:45]} 15. Qe3 {[%emt 00:00:33] [%clk 00:02:06]} h5
{[%emt 00:00:07] [%clk 00:01:40]} 16. Qc5 {[%emt 00:00:44] [%clk 00:01:24]} Nxc4
{[%emt 00:00:11] [%clk 00:01:31]} 17. bxc4 {[%emt 00:00:02] [%clk 00:01:24]} Qd6
{[%emt 00:00:07] [%clk 00:01:26]} 18. Ba3 {[%emt 00:00:07] [%clk 00:01:20]}
Qxc5+ {[%emt 00:00:10] [%clk 00:01:17]} 19. Bxc5 {[%emt 00:00:02] [%clk
00:01:21]} Rfb8 {[%emt 00:00:02] [%clk 00:01:16]} 20. Rab1 {[%emt 00:00:02]
[%clk 00:01:21]} a6 {[%emt 00:00:04] [%clk 00:01:15]} 21. Rb3 {[%emt 00:00:07]
[%clk 00:01:16]} Rxb3 {[%emt 00:00:14] [%clk 00:01:02]} 22. axb3 {[%clk
00:01:17]} Bh6 {[%emt 00:00:17] [%clk 00:00:47]} 23. Kf2 {[%emt 00:00:18] [%clk
00:01:01]} Re8 {[%emt 00:00:11] [%clk 00:00:38]} 24. Ra1 {[%emt 00:00:09] [%clk
00:00:54]} Bc8 {[%emt 00:00:01] [%clk 00:00:39]} 25. Ke2 {[%emt 00:00:08] [%clk
00:00:48]} Kf7 {[%emt 00:00:04] [%clk 00:00:38]} 26. b4 {[%emt 00:00:21] [%clk
00:00:29]} h4 {[%emt 00:00:03] [%clk 00:00:37]} 27. h3 {[%emt 00:00:15] [%clk
00:00:16]} Kg6 {[%emt 00:00:05] [%clk 00:00:34]} 28. Nh2 {[%emt 00:00:03] [%clk
00:00:15]} Bf8 {[%emt 00:00:08] [%clk 00:00:27]} 29. Bxf8 {[%emt 00:00:03] [%clk
00:00:14]} Rxf8 {[%clk 00:00:29]} 30. Ng4 {[%emt 00:00:02] [%clk 00:00:14]} Re8
{[%emt 00:00:07] [%clk 00:00:24]} 31. Ne3 {[%clk 00:00:15]} Kh5 {[%emt 00:00:06]
[%clk 00:00:20]} 32. c3 {[%emt 00:00:06] [%clk 00:00:12]} Rg8 {[%emt 00:00:07]
[%clk 00:00:15]} 33. Kf3 {[%emt 00:00:03] [%clk 00:00:11]} g4+ {[%emt 00:00:08]
[%clk 00:00:08]} 34. hxg4+ {[%emt 00:00:03] [%clk 00:00:10]} Bxg4+ {[%clk
00:00:10]} 35. Kf2 {[%emt 00:00:03] [%clk 00:00:10]} Bc8 {[%emt 00:00:02] [%clk
00:00:10]} 36. d4 {[%emt 00:00:01] [%clk 00:00:10]} exd4 {[%emt 00:00:03] [%clk
00:00:09]} 37. cxd4 {[%clk 00:00:12]} Re8 {[%emt 00:00:03] [%clk 00:00:08]} 38.
Ra5+ {[%emt 00:00:01] [%clk 00:00:13]} Kg6 {[%emt 00:00:01] [%clk 00:00:09]} 39.
Kf3 {[%emt 00:00:01] [%clk 00:00:14]} Rd8 {[%emt 00:00:02] [%clk 00:00:08]} 40.
d5 {[%emt 00:00:03] [%clk 00:00:14]} cxd5 {[%emt 00:00:04] [%clk 00:00:06]} 41.
exd5 {[%clk 00:00:15]} Kf7 {[%emt 00:00:05] [%clk 00:00:04]} 42. Rc5 {[%emt
00:00:03] [%clk 00:00:14]} Rd7 {[%emt 00:00:01] [%clk 00:00:05]} 43. Kf4 {[%emt
00:00:02] [%clk 00:00:13]} Re7 {[%emt 00:00:03] [%clk 00:00:05]} 44. Nf5 {[%emt
00:00:03] [%clk 00:00:12]} Bxf5 {[%emt 00:00:01] [%clk 00:00:06]} 45. Kxf5
{[%emt 00:00:02] [%clk 00:00:12]} Re5+ {[%emt 00:00:04] [%clk 00:00:04]} 46. Kf4
{[%clk 00:00:13]} Re7 {[%emt 00:00:01] [%clk 00:00:05]} 47. Rc6 {[%clk
00:00:14]} Kg6 {[%emt 00:00:01] [%clk 00:00:05]} 48. Rxa6 {[%emt 00:00:02] [%clk
00:00:14]} Re2 {[%clk 00:00:07]} 49. Kf3 {[%emt 00:00:01] [%clk 00:00:15]} Rc2
{[%emt 00:00:01] [%clk 00:00:07]} 50. Rc6 {[%emt 00:00:02] [%clk 00:00:17]} Rc3+
{[%clk 00:00:08]} 51. Kf2 {[%emt 00:00:02] [%clk 00:00:17]} Rc2+ {[%clk
00:00:09]} 52. Kg1 {[%emt 00:00:01] [%clk 00:00:19]} Kg5 {[%emt 00:00:02] [%clk
00:00:09]} 53. Kh2 {[%emt 00:00:02] [%clk 00:00:19]} Kg4 {[%emt 00:00:01] [%clk
00:00:10]} 54. Rxf6 {[%emt 00:00:01] [%clk 00:00:19]} h3 {[%emt 00:00:01] [%clk
00:00:11]} 55. Rg6+ {[%emt 00:00:03] [%clk 00:00:18]} Kf5 {[%emt 00:00:01] [%clk
00:00:12]} 56. Rc6 {[%emt 00:00:11] [%clk 00:00:08]} hxg2 {[%emt 00:00:02] [%clk
00:00:12]} 57. Rxc7 {[%emt 00:00:01] [%clk 00:00:10]} Kf4 {[%emt 00:00:01] [%clk
00:00:13]} 58. c5 {[%emt 00:00:03] [%clk 00:00:09]} Kf3 {[%clk 00:00:14]} 59.
Rf7+ {[%clk 00:00:10]} Ke4 {[%clk 00:00:15]} 60. d6 {[%emt 00:00:01] [%clk
00:00:11]} Rd2 {[%emt 00:00:02] [%clk 00:00:15]} 61. b5 {[%emt 00:00:02] [%clk
00:00:11]} Ke5 {[%emt 00:00:03] [%clk 00:00:14]} 62. b6 {[%emt 00:00:02] [%clk
00:00:12]} Ke6 {[%clk 00:00:15]} 63. Re7+ {[%emt 00:00:01] [%clk 00:00:13]} Kf6
{[%clk 00:00:16]} 64. b7 {[%clk 00:00:14]} Rb2 {[%emt 00:00:01] [%clk 00:00:17]}
65. c6 {[%clk 00:00:15]} Rb6 {[%emt 00:00:06] [%clk 00:00:13]} 66. c7 {[%emt
00:00:02] [%clk 00:00:15]} 1-0

[Site "Europe Echecs"]